fUST/lending_fUST_20240409
["ID","MTS","AMOUNT","RATE_DAILY","PERIOD"]
[321940602,1712644239982,-504.67559332,0.00035616,2]
[321940603,1712644239991,-500.0,0.00035616,2]
[321940604,1712644240001,-500.0,0.00035616,2]
[321940605,1712644240011,-1012.1,0.00035616,2]
[321940606,1712644240022,-500.75401144,0.00035616,2]
[321940607,1712644240031,-500.0,0.00035616,2]
[321940608,1712644240040,-500.0,0.00035616,2]
[321940609,1712644240050,-500.0,0.00035616,2]
[321940610,1712644240059,-536.11,0.00035616,2]
[321940612,1712644240070,-500.0,0.00035616,2]
[321940613,1712644240080,-501.93927738,0.00035616,2]
[321940614,1712644240090,-500.0,0.00035616,2]
[321940615,1712644240100,-500.89236074,0.00035616,2]
[321940616,1712644240112,-500.0,0.00035616,2]
[321940617,1712644240122,-500.0,0.00035616,2]
[321940618,1712644240131,-501.25116078,0.00035616,2]
[321940619,1712644240141,-500.0,0.00035616,2]
[321940620,1712644240153,-500.0,0.00035616,2]
[321940621,1712644240162,-421.54478705,0.00035616,2]
[321940622,1712644240171,-500.81627046,0.00035616,2]
[321940623,1712644240183,-1090.55,0.00035616,2]
[321940624,1712644240192,-500.0,0.00035616,2]
[321940625,1712644240201,-500.81484132,0.00035616,2]
[321940626,1712644240210,-500.0,0.00035616,2]
[321940627,1712644240220,-504.04639624,0.00035616,2]
[321940628,1712644240230,-500.49615945,0.00035616,2]
[321940629,1712644240239,-500.0,0.00035616,2]
[321940630,1712644240249,-500.0,0.00035616,2]
[321940631,1712644240258,-500.0,0.00035616,2]
[321940632,1712644240269,-500.0,0.00035616,2]
[321940633,1712644240279,-500.0,0.00035616,2]
[321940634,1712644240288,-500.79271676,0.00035616,2]
[321940635,1712644240298,-500.71127483,0.00035616,2]
[321940636,1712644240307,-500.0,0.00035616,2]
[321940637,1712644240316,-500.0,0.00035616,2]
[321940638,1712644240325,-500.0,0.00035616,2]
[321940639,1712644240335,-500.37301098,0.00035616,2]
[321940640,1712644240344,-500.82789157,0.00035616,2]
[321940641,1712644240352,-470.73586514,0.00035616,2]
[321940642,1712644240361,-500.0,0.00035616,2]
[321940643,1712644240371,-500.0,0.00035616,2]
[321940644,1712644240380,-500.77111735,0.00035616,2]
[321940645,1712644240389,-501.01914115,0.00035616,2]
[321940646,1712644240398,-447.50773548,0.00035616,2]
[321940647,1712644240407,-500.0,0.00035616,2]
[321940648,1712644240416,-500.0,0.00035616,2]
[321940649,1712644240426,-500.8559204,0.00035616,2]
[321940650,1712644240435,-500.0,0.00035616,2]
[321940651,1712644240443,-572.26,0.00035616,2]
[321940652,1712644240453,-469.63912323,0.00035616,2]
[321940653,1712644240462,-501.80694902,0.00035616,2]
[321940654,1712644240471,-373.86819184,0.00035616,2]
[321940655,1712644240480,-585.40827387,0.00035616,2]
[321940656,1712644240489,-500.0,0.00035616,2]
[321940657,1712644240499,-500.0,0.00035616,2]
[321940658,1712644240508,-500.0,0.00035616,2]
[321940659,1712644240517,-500.0,0.00035616,2]
[321940660,1712644240526,-500.0,0.00035616,2]
[321940661,1712644240536,-500.0,0.00035616,2]
[321940662,1712644240545,-500.0,0.00035616,2]
[321940663,1712644240555,-500.0,0.00035616,2]
[321940664,1712644240564,-500.0,0.00035616,2]
[321940665,1712644240573,-500.0,0.00035616,2]
[321940666,1712644240582,-500.0,0.00035616,2]
[321940667,1712644240591,-500.0,0.00035616,2]
[321940668,1712644240600,-500.0,0.00035616,2]
[321940669,1712644240610,-500.0,0.00035616,2]
[321940670,1712644240619,-500.0,0.00035616,2]
[321940671,1712644240629,-300.0,0.00035616,2]
[321940672,1712644240638,-501.66027574,0.00035616,2]
[321940673,1712644240647,-196.89106982,0.00035616,2]
[321940674,1712644240655,-500.0,0.00035616,2]
[321940675,1712644240664,-500.0,0.00035616,2]
[321940676,1712644240673,-500.0,0.00035616,2]
[321940677,1712644240683,-500.0,0.00035616,2]
[321940678,1712644240692,-500.0,0.00035616,2]
[321940679,1712644240702,-500.87774121,0.00035616,2]
[321940680,1712644240711,-500.0,0.00035616,2]
[321940681,1712644240720,-500.0,0.00035616,2]
[321940682,1712644240729,-500.0,0.00035616,2]
[321940683,1712644240738,-726.6,0.00035616,2]
[321940684,1712644240748,-1005.68,0.00035616,2]
[321940685,1712644240757,-500.0,0.00035616,2]
[321940686,1712644240766,-500.0,0.00035616,2]
[321940687,1712644240775,-500.0,0.00035616,2]
[321940688,1712644240785,-500.0,0.00035616,2]
[321940689,1712644240795,-500.0,0.00035616,2]
[321940690,1712644240804,-500.0,0.00035616,2]
[321940691,1712644240815,-500.0,0.00035616,2]
[321940692,1712644240825,-678.18,0.00035616,2]
[321940693,1712644240835,-585.2318823,0.00035616,2]
[321940694,1712644240845,-501.97133587,0.00035616,30]
[321940695,1712644240855,-500.0,0.00035616,2]
[321940696,1712644240864,-507.76012777,0.00035616,2]
[321940697,1712644240873,-731.24,0.00035616,2]
[321940698,1712644240883,-500.0,0.00035616,2]
[321940699,1712644240891,-1000.0,0.00035616,2]
[321940700,1712644240899,-500.0,0.00035616,2]
[321940701,1712644240908,-500.0,0.00035616,2]
[321940702,1712644240917,-500.77374777,0.00035616,2]
[321940703,1712644240927,-501.78263884,0.00035616,2]
[321940704,1712644240936,-500.0,0.00035616,2]
[321940705,1712644240945,-500.0,0.00035616,2]
[321940706,1712644240955,-501.50341539,0.00035616,2]
[321940707,1712644240964,-500.0,0.00035616,2]
[321940708,1712644240973,-500.0,0.00035616,2]
[321940709,1712644240983,-501.48843731,0.00035616,2]
[321940710,1712644240992,-500.0,0.00035616,2]
[321940711,1712644241002,-500.71028346,0.00035616,2]
[321940712,1712644241011,-804.77,0.00035616,2]
[321940713,1712644241020,-500.0,0.00035616,2]
[321940714,1712644241029,-500.63695796,0.00035616,2]
[321940715,1712644241038,-500.0,0.00035616,2]
[321940716,1712644241047,-500.0,0.00035616,2]
[321940717,1712644241057,-500.0,0.00035616,2]
[321940718,1712644241066,-500.0,0.00035616,2]
[321940719,1712644241075,-373.33904717,0.00035616,2]
[321940720,1712644241084,-576.45,0.00035616,2]
[321940721,1712644241093,-500.0,0.00035616,2]
[321940722,1712644241102,-500.0,0.00035616,2]
[321940723,1712644241113,-842.22,0.00035616,2]
[321940724,1712644241122,-1751.33,0.00035616,2]
[321940725,1712644241132,-500.0,0.00035616,2]
[321940726,1712644241143,-500.0,0.00035616,2]
[321940727,1712644241152,-400.27476091,0.00035616,2]
[321940728,1712644241160,-500.0,0.00035616,2]
[321940729,1712644241169,-500.0,0.00035616,2]
[321940730,1712644241182,-500.0,0.00035616,2]
[321940731,1712644241191,-500.0,0.00035616,2]
[321940732,1712644241200,-500.0,0.00035616,2]
[321940733,1712644241209,-507.82616622,0.00035616,2]
[321940734,1712644241219,-500.0,0.00035616,2]
[321940735,1712644241230,-433.68865394,0.00035616,2]
[321940736,1712644241240,-500.0,0.00035616,2]
[321940737,1712644241251,-645.1,0.00035616,2]
[321940738,1712644241260,-500.0,0.00035616,2]
[321940739,1712644241270,-500.0,0.00035616,2]
[321940740,1712644241279,-500.0,0.00035616,2]
[321940741,1712644241288,-1137.69,0.00035616,2]
[321940742,1712644241297,-500.0,0.00035616,2]
[321940743,1712644241307,-500.0,0.00035616,2]
[321940744,1712644241318,-1000.0,0.00035616,10]
[321940745,1712644241328,-732.68,0.00035616,10]
[321940746,1712644241338,-382.34103395,0.00035616,2]
[321940747,1712644241348,-707.33,0.00035616,2]
[321940748,1712644241357,-500.0,0.00035616,2]
[321940749,1712644241366,-500.0,0.00035616,2]
[321940750,1712644241376,-500.79578982,0.00035616,2]
[321940751,1712644241385,-500.0,0.00035616,2]
[321940752,1712644241394,-569.98,0.00035616,2]
[321940753,1712644241404,-500.0,0.00035616,2]
[321940754,1712644241415,-500.0,0.00035616,2]
[321940755,1712644241424,-500.0,0.00035616,2]
[321940756,1712644241434,-500.0,0.00035616,2]
[321940757,1712644241443,-500.0,0.00035616,2]
[321940758,1712644241452,-500.0,0.00035616,2]
[321940759,1712644241462,-500.0,0.00035616,2]
[321940760,1712644241471,-500.0,0.00035616,2]
[321940761,1712644241481,-500.0,0.00035616,2]
[321940762,1712644241490,-500.0,0.00035616,2]
[321940763,1712644241499,-500.0,0.00035616,2]
[321940764,1712644241508,-500.0,0.00035616,2]
[321940765,1712644241517,-888.79,0.00035616,2]
[321940766,1712644241527,-500.0,0.00035616,2]
[321940767,1712644241536,-1580.6,0.00035616,2]
[321940768,1712644241545,-500.0,0.00035616,2]
[321940769,1712644241554,-598.15,0.00035616,2]
[321940770,1712644241563,-828.56,0.00035616,2]
[321940771,1712644241571,-1360.76,0.00035616,2]
[321940772,1712644241581,-500.0,0.00035616,2]
[321940773,1712644241590,-500.0,0.00035616,2]
[321940774,1712644241598,-500.0,0.00035616,2]
[321940775,1712644241607,-500.0,0.00035616,2]
[321940776,1712644241616,-500.0,0.00035616,2]
[321940777,1712644241625,-993.44,0.00035616,2]
[321940778,1712644241635,-500.0,0.00035616,2]
[321940779,1712644241644,-510.78363155,0.00035616,2]
[321940780,1712644241653,-500.0,0.00035616,2]
[321940781,1712644241663,-500.0,0.00035616,2]
[321940782,1712644241672,-500.0,0.00035616,2]
[321940783,1712644241684,-500.0,0.00035616,2]
[321940784,1712644241693,-620.78,0.00035616,2]
[321940785,1712644241702,-500.0,0.00035616,2]
[321940786,1712644241711,-500.0,0.00035616,2]
[321940787,1712644241720,-500.0,0.00035616,2]
[321940788,1712644241729,-500.0,0.00035616,2]
[321940789,1712644241739,-1000.0,0.00035616,10]
[321940790,1712644241748,-1927.12,0.00035616,2]
[321940791,1712644241757,-1000.0,0.00035616,10]
[321940792,1712644241767,-2878.25,0.00035616,2]
[321940793,1712644241776,-1000.0,0.00035616,10]
[321940794,1712644241785,-1000.0,0.00035616,10]
[321940795,1712644241795,-1000.0,0.00035616,10]
[321940796,1712644241804,-1000.0,0.00035616,10]
[321940797,1712644241813,-1000.0,0.00035616,10]
[321940798,1712644241822,-1000.0,0.00035616,10]
[321940799,1712644241831,-1000.0,0.00035616,10]
[321940800,1712644241840,-1000.0,0.00035616,10]
[321940801,1712644241849,-1000.0,0.00035616,10]
[321940802,1712644241858,-1000.0,0.00035616,10]
[321940803,1712644241868,-1000.0,0.00035616,10]
[321940804,1712644241877,-1000.0,0.00035616,10]
[321940805,1712644241886,-1000.0,0.00035616,10]
[321940806,1712644241895,-1000.0,0.00035616,10]
[321940807,1712644241904,-1000.0,0.00035616,10]
[321940808,1712644241913,-1000.0,0.00035616,10]
[321940809,1712644241922,-1000.0,0.00035616,10]
[321940810,1712644241933,-1000.0,0.00035616,10]
[321940811,1712644241942,-1104.92777759,0.00035616,10]
[321940812,1712644241951,-500.0,0.00035616,2]
[321940813,1712644241961,-500.0,0.00035616,2]
[321940814,1712644241972,-501.24418337,0.00035616,2]
[321940815,1712644241983,-500.0,0.00035616,2]
[321940816,1712644241993,-500.0,0.00035616,2]
[321940817,1712644242003,-500.0,0.00035616,2]
[321940818,1712644242013,-500.0,0.00035616,2]
[321940819,1712644242021,-500.0,0.00035616,2]
[321940820,1712644242031,-707.11,0.00035616,2]
[321940821,1712644242040,-500.0,0.00035616,2]
[321940822,1712644242049,-500.0,0.00035616,2]
[321940823,1712644242058,-196.280638,0.00035616,2]
[321940824,1712644242066,-500.0,0.00035616,2]
[321940825,1712644242075,-500.0,0.00035616,2]
[321940826,1712644242084,-1211.92,0.00035616,2]
[321940827,1712644242093,-500.0,0.00035616,2]
[321940828,1712644242102,-500.0,0.00035616,2]
[321940829,1712644242113,-500.0,0.00035616,2]
[321940830,1712644242123,-500.0,0.00035616,2]
[321940831,1712644242133,-507.16903718,0.00035616,2]
[321940832,1712644242145,-500.0,0.00035616,2]
[321940833,1712644242156,-500.0,0.00035616,2]
[321940834,1712644242165,-501.00453664,0.00035616,2]
[321940835,1712644242174,-227.25539234,0.00035616,2]
[321940836,1712644242185,-500.0,0.00035616,2]
[321940837,1712644242195,-500.0,0.00035616,2]
[321940838,1712644242204,-500.0,0.00035616,2]
[321940839,1712644242213,-662.1,0.00035616,2]
[321940840,1712644242224,-500.0,0.00035616,2]
[321940841,1712644242334,-345.13369233,0.00035616,2]
[321940842,1712644242344,-500.0,0.00035616,2]
[321940843,1712644242354,-600.0,0.00035616,2]
[321940844,1712644242365,-501.27388295,0.00035616,2]
[321940845,1712644242375,-500.0,0.00035616,2]
[321940846,1712644242384,-500.0,0.00035616,2]
[321940847,1712644242395,-500.0,0.00035616,2]
[321940848,1712644242405,-500.0,0.00035616,2]
[321940849,1712644242415,-500.0,0.00035616,2]
[321940850,1712644242425,-500.0,0.00035616,2]
[321940851,1712644242435,-500.0,0.00035616,2]
[321940852,1712644242445,-500.0,0.00035616,2]
[321940853,1712644242455,-500.0,0.00035616,2]
[321940854,1712644242464,-784.21,0.00035616,2]
[321940855,1712644242473,-500.0,0.00035616,2]
[321940856,1712644242483,-500.0,0.00035616,2]
[321940857,1712644242492,-500.0,0.00035616,2]
[321940858,1712644242501,-500.0,0.00035616,2]
[321940859,1712644242510,-500.0,0.00035616,2]
[321940860,1712644242519,-500.0,0.00035616,2]
[321940861,1712644242529,-500.0,0.00035616,2]
[321940862,1712644242538,-220.13815965,0.00035616,2]
[321940863,1712644242547,-500.0,0.00035616,2]
[321940864,1712644242557,-500.0,0.00035616,2]
[321940865,1712644242566,-501.35539682,0.00035616,2]
[321940866,1712644242575,-619.81860608,0.00035616,2]
[321940867,1712644242586,-500.0,0.00035616,2]
[321940868,1712644242596,-500.0,0.00035616,2]
[321940869,1712644242606,-3163.23,0.00035616,2]
[321940870,1712644242615,-500.0,0.00035616,2]
[321940871,1712644242624,-500.0,0.00035616,2]
[321940872,1712644242633,-500.0,0.00035616,2]
[321940873,1712644242642,-500.0,0.00035616,2]
[321940874,1712644242651,-4188.93,0.00035616,2]
[321940875,1712644242661,-500.0,0.00035616,2]
[321940876,1712644242670,-500.0,0.00035616,2]
[321940877,1712644242680,-500.0,0.00035616,2]
[321940878,1712644242690,-500.0,0.00035616,2]
[321940879,1712644242699,-2244.88,0.00035616,2]
[321940880,1712644242708,-164.1480007,0.00035616,2]
[321940881,1712644242716,-501.01374739,0.00035616,2]
[321940882,1712644242725,-500.0,0.00035616,2]
[321940883,1712644242734,-824.79,0.00035616,2]
[321940884,1712644242743,-500.0,0.00035616,2]
[321940885,1712644242752,-500.0,0.00035616,2]
[321940886,1712644242762,-7674.51,0.00035616,2]
[321940887,1712644242771,-500.0,0.00035616,2]
[321940888,1712644242780,-500.0,0.00035616,2]
[321940889,1712644242790,-501.42083841,0.00035616,2]
[321940890,1712644242799,-500.0,0.00035616,2]
[321940891,1712644242808,-1192.88,0.00035616,2]
[321940892,1712644242817,-500.0,0.00035616,2]
[321940893,1712644242826,-2016.47,0.00035616,2]
[321940894,1712644242835,-500.0,0.00035616,2]
[321940895,1712644242844,-500.0,0.00035616,2]
[321940896,1712644242853,-500.0,0.00035616,2]
[321940898,1712644242863,-243.47905515,0.00035616,2]
[321940899,1712644242872,-500.0,0.00035616,2]
[321940900,1712644242881,-500.0,0.00035616,2]
[321940901,1712644242891,-500.0,0.00035616,2]
[321940902,1712644242901,-500.0,0.00035616,2]
[321940903,1712644242910,-500.0,0.00035616,2]
[321940904,1712644242919,-611.87652153,0.00035616,2]
[321940905,1712644242928,-1689.72,0.00035616,2]
[321940906,1712644242937,-500.0,0.00035616,2]
[321940908,1712644242947,-505.6,0.00035616,2]
[321940909,1712644242955,-1558.55,0.00035616,2]
[321940910,1712644242965,-500.0,0.00035616,2]
[321940911,1712644242974,-500.0,0.00035616,2]
[321940913,1712644242983,-1904.85,0.00035616,2]
[321940914,1712644242993,-500.0,0.00035616,2]
[321940915,1712644243002,-400.75438426,0.00035616,2]
[321940916,1712644243011,-2356.88,0.00035616,2]
[321940917,1712644243019,-500.0,0.00035616,2]
[321940918,1712644243028,-500.0,0.00035616,2]
[321940919,1712644243037,-500.0,0.00035616,2]
[321940920,1712644243046,-500.0,0.00035616,2]
[321940921,1712644243055,-500.0,0.00035616,2]
[321940922,1712644243064,-4570.78,0.00035616,2]
[321940923,1712644243073,-500.0,0.00035616,2]
[321940924,1712644243082,-500.0,0.00035616,2]
[321940925,1712644243091,-500.0,0.00035616,2]
[321940926,1712644243101,-2823.83,0.00035616,2]
[321940927,1712644243111,-500.0,0.00035616,2]
[321940928,1712644243122,-500.0,0.00035616,2]
[321940929,1712644243133,-500.0,0.00035616,2]
[321940930,1712644243149,-500.0,0.00035616,2]
[321940931,1712644243159,-500.0,0.00035616,2]
[321940932,1712644243168,-500.0,0.00035616,2]
[321940933,1712644243178,-500.0,0.00035616,2]
[321940934,1712644243187,-500.0,0.00035616,2]
[321940935,1712644243196,-3703.71,0.00035616,2]
[321940936,1712644243206,-500.0,0.00035616,2]
[321940938,1712644243217,-873.77,0.00035616,2]
[321940940,1712644243227,-500.0,0.00035616,2]
[321940942,1712644243236,-1560.45,0.00035616,2]
[321940943,1712644243245,-500.0,0.00035616,2]
[321940944,1712644243254,-784.8,0.00035616,2]
[321940945,1712644243263,-500.0,0.00035616,2]
[321940946,1712644243272,-2227.54,0.00035616,2]
[321940947,1712644243281,-2502.36,0.00035616,2]
[321940948,1712644243290,-164.8734558,0.00035616,2]
[321940949,1712644243300,-501.44278197,0.00035616,2]
[321940950,1712644243309,-180.43505414,0.00035616,2]
[321940951,1712644243318,-1211.4,0.00035616,2]
[321940952,1712644243327,-501.09464452,0.00035616,2]
[321940954,1712644243336,-739.26,0.00035616,2]
[321940956,1712644243345,-951.7,0.00035616,2]
[321940958,1712644243354,-2674.63,0.00035616,2]
[321940960,1712644243363,-500.0,0.00035616,2]
[321940962,1712644243372,-500.0,0.00035616,2]
[321940964,1712644243380,-500.0,0.00035616,2]
[321940966,1712644243389,-500.0,0.00035616,2]
[321940968,1712644243399,-646.31,0.00035616,2]
[321940970,1712644243407,-500.0,0.00035616,2]
[321940972,1712644243416,-500.0,0.00035616,2]
[321940974,1712644243425,-2199.43,0.00035616,2]
[321940976,1712644243436,-500.0,0.00035616,2]
[321940977,1712644243445,-500.0,0.00035616,2]
[321940979,1712644243454,-500.0,0.00035616,2]
[321940981,1712644243463,-27763.92,0.00035616,2]
[321940983,1712644243472,-1846.58,0.00035616,2]
[321940985,1712644243481,-500.0,0.00035616,2]
[321940987,1712644243490,-616.89,0.00035616,2]
[321940989,1712644243499,-623.09521547,0.00035616,2]
[321940991,1712644243508,-500.0,0.00035616,2]
[321940993,1712644243517,-500.0,0.00035616,2]
[321940995,1712644243526,-209.92810678,0.00035616,2]
[321940997,1712644243535,-500.0,0.00035616,2]
[321940999,1712644243544,-500.0,0.00035616,2]
[321941001,1712644243553,-500.0,0.00035616,2]
[321941003,1712644243562,-5327.83,0.00035616,2]
[321941006,1712644243571,-500.0,0.00035616,2]
[321941008,1712644243580,-576.52,0.00035616,2]
[321941010,1712644243590,-460.4420057,0.00035616,2]
[321941012,1712644243599,-500.0,0.00035616,2]
[321941014,1712644243608,-21357.3,0.00035616,2]
[321941016,1712644243617,-3893.51,0.00035616,2]
[321941018,1712644243626,-500.0,0.00035616,2]
[321941020,1712644243635,-500.0,0.00035616,2]
[321941022,1712644243644,-950.88,0.00035616,2]
[321941024,1712644243653,-500.0,0.00035616,2]
[321941026,1712644243662,-583.29,0.00035616,2]
[321941027,1712644243671,-546.89,0.00035616,2]
[321941029,1712644243682,-8330.43,0.00035616,2]
[321941031,1712644243692,-500.0,0.00035616,2]
[321941034,1712644243701,-500.93752798,0.00035616,2]
[321941036,1712644243711,-946.36,0.00035616,2]
[321941038,1712644243720,-500.0,0.00035616,2]
[321941040,1712644243729,-500.0,0.00035616,2]
[321941042,1712644243741,-500.0,0.00035616,2]
[321941044,1712644243750,-500.0,0.00035616,2]
[321941045,1712644243759,-2691.11,0.00035616,2]
[321941048,1712644243768,-500.0,0.00035616,2]
[321941049,1712644243778,-578.42139183,0.00035616,2]
[321941051,1712644243787,-504.27,0.00035616,2]
[321941053,1712644243796,-500.0,0.00035616,2]
[321941055,1712644243806,-1888.59,0.00035616,2]
[321941057,1712644243815,-500.91291952,0.00035616,2]
[321941059,1712644243825,-500.0,0.00035616,2]
[321941062,1712644243835,-500.0,0.00035616,2]
[321941063,1712644243844,-500.0,0.00035616,2]
[321941065,1712644243853,-500.0,0.00035616,2]
[321941067,1712644243862,-190.39462141,0.00035616,2]
[321941069,1712644243872,-1143.33,0.00035616,2]
[321941071,1712644243881,-500.0,0.00035616,2]
[321941073,1712644243889,-784.59,0.00035616,2]
[321941075,1712644243898,-4762.99,0.00035616,2]
[321941077,1712644243907,-500.0,0.00035616,2]
[321941079,1712644243916,-2661.19,0.00035616,2]
[321941081,1712644243925,-500.0,0.00035616,2]
[321941083,1712644243936,-517.68,0.00035616,2]
[321941085,1712644243944,-500.87623615,0.00035616,2]
[321941087,1712644243953,-500.0,0.00035616,2]
[321941089,1712644243962,-500.0,0.00035616,2]
[321941092,1712644243971,-9659.96,0.00035616,2]
[321941095,1712644243980,-500.0,0.00035616,2]
[321941098,1712644243989,-166.666666,0.0003576,2]
[321941100,1712644243998,-663.52816134,0.0003579,2]
[321941102,1712644244007,-500.0,0.00035889,5]
[321941104,1712644244016,-500.0,0.00035889,5]
[321941106,1712644244026,-500.0,0.00035889,5]
[321941108,1712644244035,-320.09795557,0.00035889,5]
[321941110,1712644244044,-500.0,0.00035889,5]
[321941112,1712644244053,-500.0,0.00035889,5]
[321941115,1712644244062,-500.0,0.00035889,5]
[321941117,1712644244072,-500.0,0.00035889,5]
[321941119,1712644244081,-500.0,0.00035889,5]
[321941120,1712644244090,-500.0,0.00035889,5]
[321941122,1712644244099,-500.0,0.00035889,5]
[321941125,1712644244110,-500.0,0.00035889,5]
[321941127,1712644244119,-500.0,0.00035889,5]
[321941129,1712644244128,-500.0,0.00035889,5]
[321941130,1712644244138,-500.0,0.00035889,5]
[321941132,1712644244151,-500.0,0.00035889,5]
[321941134,1712644244160,-500.0,0.0003589,5]
[321941136,1712644244169,-592.07022979,0.0003589,5]
[321941138,1712644244180,-500.0,0.0003589,5]
[321941140,1712644244190,-500.0,0.0003589,5]
[321941142,1712644244199,-247.00310956,0.0003589,5]
[321941144,1712644244207,-500.0,0.0003589,5]
[321941146,1712644244217,-500.0,0.0003589,5]
[321941148,1712644244228,-500.0,0.0003589,5]
[321941150,1712644244238,-500.0,0.0003589,5]
[321941152,1712644244247,-539.78440369,0.0003589,5]
[321941154,1712644244256,-336.70695733,0.0003589,5]
[321941156,1712644244265,-500.0,0.0003589,5]
[321941158,1712644244274,-1012.1,0.0003589,5]
[321941160,1712644244283,-500.0,0.0003589,5]
[321941162,1712644244292,-500.0,0.0003589,5]
[321941164,1712644244301,-500.0,0.0003589,5]
[321941166,1712644244310,-500.0,0.0003589,5]
[321941168,1712644244319,-500.0,0.0003589,5]
[321941170,1712644244328,-500.0,0.0003589,5]
[321941172,1712644244338,-500.0,0.0003589,5]
[321941175,1712644244347,-500.0,0.0003589,5]
[321941177,1712644244356,-1090.55,0.0003589,2]
[321941179,1712644244365,-500.0,0.0003589,5]
[321941181,1712644244374,-501.91681844,0.0003589,5]
[321941183,1712644244383,-500.0,0.0003589,5]
[321941185,1712644244392,-501.9766043,0.0003589,5]
[321941186,1712644244401,-500.0,0.0003589,5]
[321941188,1712644244411,-500.33374769,0.0003589,5]
[321941190,1712644244420,-500.0,0.0003589,5]
[321941192,1712644244429,-518.94341513,0.0003589,5]
[321941194,1712644244438,-500.0,0.0003589,5]
[321941196,1712644244446,-501.45372642,0.0003589,5]
[321941198,1712644244456,-501.68952314,0.0003589,5]
[321941200,1712644244465,-500.0,0.0003589,5]
[321941202,1712644244472,-406.8200688,0.0003589,5]
[321941204,1712644244481,-572.26,0.0003589,5]
[321941206,1712644244491,-501.20453944,0.0003589,5]
[321941208,1712644244500,-500.81718228,0.0003589,5]
[321941210,1712644244510,-501.35032413,0.0003589,5]
[321941212,1712644244519,-414.02794365,0.0003589,5]
[321941214,1712644244528,-501.8161998,0.0003589,5]
[321941216,1712644244537,-520.36689179,0.0003589,5]
[321941218,1712644244546,-501.33888658,0.0003589,5]
[321941220,1712644244555,-500.0,0.0003589,5]
[321941222,1712644244564,-603.85991666,0.0003589,5]
[321941224,1712644244573,-516.09989735,0.0003589,5]
[321941226,1712644244582,-503.3279102,0.0003589,5]
[321941228,1712644244591,-447.30268506,0.0003589,5]
[321941230,1712644244600,-504.83851575,0.0003589,5]
[321941232,1712644244609,-500.0,0.0003589,5]
[321941234,1712644244619,-726.6,0.0003589,5]
[321941236,1712644244628,-1005.68,0.0003589,5]
[321941238,1712644244637,-500.0,0.0003589,5]
[321941241,1712644244647,-500.0,0.0003589,5]
[321941242,1712644244655,-503.37786384,0.0003589,5]
[321941244,1712644244665,-500.0,0.0003589,5]
[321941246,1712644244674,-501.68955675,0.0003589,5]
[321941249,1712644244685,-203.27474065,0.0003589,5]
[321941250,1712644244694,-678.18,0.0003589,5]
[321941253,1712644244704,-500.85014093,0.0003589,5]
[321941255,1712644244713,-731.24,0.0003589,5]
[321941267,1712644244723,-501.86581278,0.0003589,5]
[321941269,1712644244826,-1000.0,0.0003589,5]
[321941271,1712644244835,-500.0,0.0003589,5]
[321941273,1712644244844,-500.0,0.0003589,5]
[321941275,1712644244854,-500.0,0.0003589,5]
[321941277,1712644244863,-500.0,0.0003589,5]